Cogmind - Beta 14 @@@ ROGUE MODE // 2024.10.08 @ 20:35:10 Player: s0lid Result: Destroyed by B-48 Gladiator with Mace Performance ------------- Evolutions (3) 1500 Regions Visited (6) 1200 Robots Destroyed (132) 660 Value Destroyed (4700) 4700 Prototype IDs (8) 160 Alien Tech Used (0) 0 Bonus (1279) 1279 TOTAL SCORE: 9499 Bonus ------- High Alert Combat Kills 579 Entered Garrisons 200 Used RIF Installer 500 Cogmind --------- Core Integrity 0/700 Matter 142/300 Energy 140/160 System Corruption 18% Temperature Cool (37) Movement Treading (240) Ox1 Location -7/Storage Parts ------- > --- POWER (2) -------- Light Fission Core > --- PROPULSION (4) --- Improved Heavy Treads Improved Heavy Treads > --- UTILITY (5) ------ Coolant Injector Cargo Storage Unit > --- WEAPON (2) ------- KE Penetrator > --- INVENTORY (30) --- Nuclear Core Nuclear Core Improved Heavy Treads Improved Heavy Treads Cryofiber Web Compact Battery (200) Compact Battery (200) High-capacity Matter Pod (200) Gravity Neutralizer Structural Scanner Improved Sensor Array Improved Signal Interpreter Particle Charger Advanced Phase Shifter Improved Light Armor Plating Heavy Assault Cannon Remote Datajack Mining Laser Peak State ------------ > --- POWER ------------ Deuterium Engine Nuclear Core > --- PROPULSION ------- Improved Heavy Treads Improved Heavy Treads > --- UTILITY ---------- Coolant Injector Cargo Storage Unit Advanced Phase Shifter Improved Light Armor Plating > --- WEAPON ----------- Gatling Laser KE Penetrator > --- INVENTORY -------- Nuclear Core Nuclear Core Light Fission Core Improved Heavy Treads Improved Heavy Treads Improved Heavy Treads Cryofiber Web Compact Battery Compact Battery High-capacity Matter Pod Gravity Neutralizer Structural Scanner Improved Sensor Array Improved Signal Interpreter Particle Charger Advanced Phase Shifter Improved Light Armor Plating KE Penetrator Heavy Assault Cannon Remote Datajack Mining Laser Katana [Rating: 73] Favorites ----------- Power Nuclear Core Engine Deuterium Engine Power Core Nuclear Core Propulsion Wheel Treads Improved Heavy Treads Wheel Wheel Hover Unit Aerolev Unit Flight Unit Improved VTOL Module Utility Huge Storage Unit Device Improved Sensor Array Storage Huge Storage Unit Processor Targeting Computer Hackware Hacking Suite Protection Improved Light Armor Plating Weapon Improved EM Shotgun Energy Gun Improved EM Shotgun Energy Cannon EM Pulse Cannon Ballistic Gun Enhanced Autogun Ballistic Cannon Heavy Assault Cannon Launcher Grenade Launcher Slashing Weapon Katana Build | -11 -10 -9 -8 -7 -7 -7 ------- Run | Yrd Mat Mat Mat Fac Gar Sto Slots Evolved 6 | . . 2 2 2 . . Power 1 | . . . . 1 . . Propulsion 2 | . . 1 . 1 . . Utility 3 | . . 1 2 . . . Weapon . | . . . . . . . Parts Attached 142 | 5 16 32 29 14 36 10 Power 16 | . 2 4 1 3 4 2 Engine 7 | . 1 3 . 2 1 . Core 9 | . 1 1 1 1 3 2 Reactor . | . . . . . . . Propulsion 36 | 2 5 10 7 3 8 1 Treads 9 | . . . . . 8 1 Leg . | . . . . . . . Wheel 25 | 2 5 10 5 3 . . Hover 1 | . . . 1 . . . Flight 1 | . . . 1 . . . Utility 36 | 1 4 5 6 3 12 5 Device 17 | 1 3 3 2 2 4 2 Storage 3 | . 1 . . . 1 1 Processor 2 | . . 1 1 . . . Hackware 3 | . . . 2 . . 1 Protection 11 | . . 1 1 1 7 1 Artifact . | . . . . . . . Weapon 54 | 2 5 13 15 5 12 2 Energy Gun 22 | 1 3 9 4 . 5 . Energy Cannon 3 | . . . 2 1 . . Ballistic Gun 19 | 1 1 3 5 4 4 1 Ballistic Cannon 2 | . . 1 . . 1 . Launcher 3 | . 1 . 1 . 1 . Special Weapon . | . . . . . . . Impact Weapon . | . . . . . . . Slashing Weapon 5 | . . . 3 . 1 1 Piercing Weapon . | . . . . . . . Special Melee Weapon . | . . . . . . . Unidentified Prototypes 6 | . . 1 3 1 1 . Parts Lost 42 | . 3 9 3 3 15 9 Power 5 | . . 1 . . 2 2 Propulsion 15 | . 1 4 1 2 6 1 Utility 10 | . 1 1 2 . 2 4 Weapon 12 | . 1 3 . 1 5 2 Highest Loss Streak 9 | . 2 2 3 1 7 9 To Critical Strikes . | . . . . . . . Average Slot Usage (%) 85 | . 93 96 99 92 72 67 Engine 5 | . 4 6 . 7 6 5 Core 6 | . 7 4 9 6 6 5 Treads 6 | . . . . . 14 15 Wheel 16 | . 27 32 26 24 1 . Device 7 | . 14 5 9 13 4 5 Storage 8 | . 12 11 9 7 7 7 Processor 4 | . . 9 12 2 . . Hackware 2 | . . . 9 7 . 1 Protection 8 | . . 4 4 5 13 9 Energy Gun 9 | . 11 16 10 . 6 4 Ballistic Gun 5 | . 7 3 3 10 6 7 Peak Build Rating 73 | 4 14 23 34 40 69 73 Average Rating 38 | 2 10 17 29 36 57 66 On Entrance 25 | . 4 14 20 32 40 67 Naked Turns . | . . . . . . . Heaviest Build 186 | 3 92 96 102 121 186 183 Greatest Support 162 | 26 26 32 32 46 162 150 Greatest Overweight (x) 9 | . 4 9 3 4 6 1 Average Overweight (x) 1 | . 2 2 2 3 1 1 Largest Inventory Capacity 30 | 5 25 25 25 25 30 30 Average Capacity 26 | 5 22 25 25 25 28 30 Most Carried 30 | 3 25 25 25 25 30 29 Average Carried 24 | 2 16 23 24 23 27 27 Final Capacity 30 | 5 25 25 25 25 30 30 Final Carried 29 | 3 25 25 25 25 29 21 Class Distribution -------------------- 39% | Mutant 34% | Hauler-Mutant 22% | Scavenger-Mutant Dominant Class ---------------- Mutant | -10/Materials Mutant | -9/Materials Scavenger-Mutant | -8/Materials Scavenger-Mutant | -7/Factory Hauler-Mutant | -7/Garrison Hauler-Mutant | -7/Storage Resources | -11 -10 -9 -8 -7 -7 -7 ----------- Run | Yrd Mat Mat Mat Fac Gar Sto Matter Collected 3458 | 261 272 785 419 370 1290 61 Remotely . | . . . . . . . Salvage Created 5628 | 65 434 1663 997 460 1791 218 Parts 318 | 2 27 115 73 22 67 12 Haulers Intercepted 12 | . 1 5 5 1 . . Recyclers Shooed 2 | . 1 . 1 . . . Parts Field Recycled . | . . . . . . . Retrieved Matter . | . . . . . . . Parts Self-Destructed . | . . . . . . . Prevented . | . . . . . . . Kills | -11 -10 -9 -8 -7 -7 -7 ------- Run | Yrd Mat Mat Mat Fac Gar Sto Combat Hostiles Destroyed 90 | . 8 27 18 7 26 4 Melee 4 | . . . . . 3 1 Guns 51 | . 7 18 8 5 12 1 Cannons 4 | . . 1 1 2 . . AOE 27 | . 1 6 8 . 10 2 Classes Destroyed 13 | 2 4 5 . . 1 1 Worker 7 | . . 5 2 . . . Builder 5 | . . 2 2 . . 1 Tunneler 4 | 1 . 1 2 . . . Hauler 12 | . 1 5 5 1 . . Recycler 2 | 1 . 1 . . . . Operator 5 | . 1 3 1 . . . Watcher 7 | . 1 4 1 1 . . Swarmer 15 | . . 4 7 . 4 . Grunt 52 | . 8 16 7 5 16 . Brawler 4 | . . 1 . 1 1 1 Duelist 3 | . . . . . 1 2 Protector 1 | . . . . . . 1 Sentry 15 | . . 6 4 1 4 . Best Kill Streak 10 | 1 4 10 8 3 10 2 Combat Bots Only 10 | . 4 4 7 3 10 2 Max Kills in Single Turn 4 | 1 1 4 4 1 4 2 Gunslinging . | . . . . . . . Exploded 4 | . 1 3 3 . 4 2 Melee 1 | . . . . . 1 1 Uniques/NPCs Destroyed . | . . . . . . . Combat | -11 -10 -9 -8 -7 -7 -7 -------- Run | Yrd Mat Mat Mat Fac Gar Sto Hostile Shots Fired 788 | . 48 121 48 74 283 214 Missed 281 | . 14 34 15 18 111 89 Damage Taken 6998 | . 456 1306 528 716 1986 2006 Core 1236 | . 120 188 220 33 389 286 Absorbed by Shields . | . . . . . . . Regen/Repaired (Parts) 46 | . . 46 . . . . Core Remaining (%) 66 | 100 52 53 60 . . . Volleys Fired 470 | 14 53 99 39 37 202 26 Largest 2 | 1 2 2 2 2 2 2 Hottest 113 | 20 95 90 90 88 105 113 Shots Fired 705 | 14 85 176 71 68 255 36 Gun 658 | 14 78 158 62 61 249 36 Cannon 19 | . . 9 3 7 . . Launcher 28 | . 7 9 6 . 6 . Special . | . . . . . . . Kinetic 410 | 14 42 32 20 61 216 25 Thermal 62 | . 21 14 . . 16 11 Explosive 28 | . 7 9 6 . 6 . Electromagnetic 205 | . 15 121 45 7 17 . Robot Hit Streak 25 | 3 6 19 9 12 25 8 Robot Miss Streak 5 | 2 3 4 4 2 5 2 Penetration Max 1 | . . . . . . 1 Secondary Targets 5 | . 1 2 . 1 1 . Max Gunslinging Chain 1 | . 1 1 . 1 1 . Shots Hit Robots 511 | 9 53 140 60 49 169 31 Core Hits 296 | 3 23 83 45 19 100 23 Critical Kills 3 | . 1 . 1 . 1 . Critical Parts Destroyed 1 | . . . . . . 1 Critical Strikes 6 | . 2 . 1 . 2 1 Burn 1 | . 1 . . . . . Destroy 4 | . 1 . 1 . 1 1 Sever 1 | . . . . . 1 . Melee Attacks 34 | . . . 19 . 12 3 Impact . | . . . . . . . Slashing 34 | . . . 19 . 12 3 Piercing . | . . . . . . . Sneak Attacks 4 | . . . 4 . . . Combat Hostiles . | . . . . . . . Follow-up Attacks . | . . . . . . . Damage Inflicted 12774 | 117 754 3157 2393 902 4266 1185 Guns 8026 | 117 617 2059 790 732 2874 837 Cannons 335 | . . 102 63 170 . . Explosions 3520 | . 137 996 946 . 1131 310 Melee 876 | . . . 594 . 261 21 Ramming 17 | . . . . . . 17 Kinetic 4799 | 117 352 378 178 732 2439 603 Thermal 1596 | . 146 491 414 . 311 234 Explosive 2748 | . 137 638 532 . 1131 310 Electromagnetic 2738 | . 119 1650 675 170 124 . Impact . | . . . . . . . Slashing 876 | . . . 594 . 261 21 Piercing . | . . . . . . . Highest Corruption 18 | . . . 1 2 2 18 Average Corruption 2 | . . . 1 2 2 7 Corruption Purged . | . . . . . . . Corruption Blocked . | . . . . . . . Effects 65 | . . . 1 3 52 9 Message Errors 15 | . . . . . 15 . Matter Fused 18 | . . . 1 1 13 3 Heat Flow Errors 5 | . . . . . 5 . Energy Discharges 7 | . . . . 1 5 1 Parts Rejected 1 | . . . . . . 1 Data Loss (minor) 5 | . . . . 1 3 1 Data Loss (major) 4 | . . . . . 4 . Misfires 4 | . . . . . 4 . Alerts 2 | . . . . . 1 1 Misdirections 1 | . . . . . . 1 Weapon Failures 3 | . . . . . 2 1 Overload Shots . | . . . . . . . Overflow Damage 275 | . 6 14 127 . 99 29 Projectiles . | . . . . . . . Explosions 193 | . 6 14 58 . 86 29 Melee 82 | . . . 69 . 13 . Knockbacks 1 | . . 1 . . . . Impact . | . . . . . . . Kinetic 1 | . . 1 . . . . Secondary . | . . . . . . . Self-Inflicted Damage 596 | . 34 182 90 . 206 84 Shots 15 | . 1 6 3 . 3 2 Rammed 1 | . . . . . . 1 Targets Rammed 1 | . . . . . . 1 Kicked . | . . . . . . . Crushed . | . . . . . . . Highest Temperature 407 | . 36 213 187 367 335 407 Average Temperature 97 | . 14 66 46 165 96 166 Received Heat Transfer 2439 | . 252 486 162 423 777 339 Effects 4 | . . . . 4 . . Interference 3 | . . . . 3 . . Short Circuit 1 | . . . . 1 . . Siege Activations . | . . . . . . . Robots Corrupted 5 | . . 3 1 . 1 . Combat Hostiles 4 | . . 2 1 . 1 . Parts Fried 10 | . . 7 2 1 . . Impact Corruptions . | . . . . . . . Robots Melted . | . . . . . . . Combat Hostiles . | . . . . . . . Parts Melted 4 | . 1 . . . 3 . Heat Transferred 2668 | . 410 749 450 . 725 334 Parts Sabotaged . | . . . . . . . Parts Stolen . | . . . . . . . Parts Stripped . | . . . . . . . Power Chain Reactions 11 | . . 6 5 . . . Alert | -11 -10 -9 -8 -7 -7 -7 ------- Run | Yrd Mat Mat Mat Fac Gar Sto Peak Influence 2017 | 10 218 556 392 314 2017 1054 Initial 982 | . 6 53 197 132 219 982 Average 612 | 4 69 379 206 194 1057 1001 Maximum Alert Level 5 | . 1 2 1 1 5 3 Low Security (%) 21 | 100 94 6 36 51 . . Level 1 23 | . 5 39 63 48 4 . Level 2 20 | . . 54 . . 22 . Level 3 17 | . . . . . 33 100 Level 4 10 | . . . . . 24 . Level 5 6 | . . . . . 15 . High Security . | . . . . . . . Max Security . | . . . . . . . Squads Dispatched 14 | . 2 5 2 2 . 3 Investigation 4 | . . 2 2 . . . Extermination . | . . . . . . . Reinforcement 7 | . 2 3 . 1 . 1 Assault 2 | . . . . . . 2 Garrison 1 | . . . . 1 . . Intercept . | . . . . . . . Searches Triggered . | . . . . . . . Construction Impeded 2 | . . 1 . . . 1 Haulers Reinforced . | . . . . . . . Active Scanning Responses . | . . . . . . . Cargo Convoy Interrupts . | . . . . . . . Stealth | -11 -10 -9 -8 -7 -7 -7 --------- Run | Yrd Mat Mat Mat Fac Gar Sto Distress Signals 8 | . 1 5 1 1 . . Communications Jammed . | . . . . . . . Distress Signals . | . . . . . . . Times Spotted 142 | . 16 42 29 15 27 13 Peak Tracking Total 16 | . 4 5 7 5 16 10 Tactical Retreats 9 | . . 4 1 2 2 . Traps | -11 -10 -9 -8 -7 -7 -7 ------- Run | Yrd Mat Mat Mat Fac Gar Sto Traps Triggered 12 | . . 3 2 . 7 . Indirectly . | . . . . . . . Trap Hack Attempts . | . . . . . . . Triggered . | . . . . . . . Disarmed . | . . . . . . . Reprogrammed . | . . . . . . . Reused . | . . . . . . . Traps Extracted . | . . . . . . . Installed . | . . . . . . . Triggered 2 | . . 2 . . . . Machines | -11 -10 -9 -8 -7 -7 -7 ---------- Run | Yrd Mat Mat Mat Fac Gar Sto Machines Disabled 15 | . 2 3 1 . 5 4 Max in Single Turn 2 | . 1 1 1 . 2 2 Garrison Relay 3 | . . . . . 3 . Phase Generator 1 | . . . . . 1 . Machines Repaired . | . . . . . . . Machines Dismantled . | . . . . . . . Machines Sabotaged . | . . . . . . . Overloaded Fab Kills . | . . . . . . . Hacking | -11 -10 -9 -8 -7 -7 -7 --------- Run | Yrd Mat Mat Mat Fac Gar Sto Machines Accessed 24 | . 6 6 6 1 4 1 Terminals 20 | . 5 5 5 . 4 1 Fabricators . | . . . . . . . Repair Stations 1 | . . 1 . . . . Recycling Units 2 | . 1 . 1 . . . Scanalyzers . | . . . . . . . Garrison Access 1 | . . . . 1 . . Total Hacks 81 | . 22 20 25 3 9 2 Successful 40 | . 12 10 14 1 2 1 Failed 40 | . 10 10 10 2 7 1 Catastrophic 5 | . 2 1 1 . 1 . Database Lockouts 1 | . . . 1 . . . Manual 43 | . 14 17 12 . . . Terminals 74 | . 21 18 24 . 9 2 Fabricators . | . . . . . . . Repair Stations 2 | . . 2 . . . . Recycling Units 2 | . 1 . 1 . . . Scanalyzers . | . . . . . . . Garrison Access 3 | . . . . 3 . . Terminal Hacks 20 | . 5 3 9 . 2 1 Part Schematic 1 | . . . 1 . . . Prototype ID Bank 1 | . 1 . . . . . Emergency Access Points 2 | . 1 . . . 1 . Terminal Index 2 | . . 1 1 . . . Recycling Unit Index 1 | . . . 1 . . . Unreport Threat 5 | . . 1 4 . . . Locate Traps 4 | . 2 1 1 . . . Patrol Status 1 | . . . . . . 1 Hauler Manifests 2 | . 1 . 1 . . . Patrol Navigation 1 | . . . . . 1 . Fabricator Hacks . | . . . . . . . Repair Station Hacks 2 | . . 2 . . . . Scan Component 1 | . . 1 . . . . Repair 1 | . . 1 . . . . Recycling Unit Hacks 2 | . 1 . 1 . . . Retrieve Components 2 | . 1 . 1 . . . Scanalyzer . | . . . . . . . Garrison Access Hacks 1 | . . . . 1 . . Unlock Access 1 | . . . . 1 . . Unauthorized Hacks 15 | . 6 5 4 . . . Terminals 15 | . 6 5 4 . . . Botnet 13 | . 5 5 3 . . . Operators 2 | . 1 . 1 . . . Fabricators . | . . . . . . . Repair Stations . | . . . . . . . Recycling Units . | . . . . . . . Scanalyzers . | . . . . . . . Garrison Access . | . . . . . . . Data Cores Recovered 3 | . . 1 1 . . 1 Used 1 | . . . 1 . . . Hacking Detections 22 | . 5 6 5 1 4 1 Full Trace Events 4 | . . . 2 . 2 . Feedback Events . | . . . . . . . Feedback Blocked . | . . . . . . . Robot Schematics Acquired . | . . . . . . . Robots Built . | . . . . . . . Authchips . | . . . . . . . Time . | . . . . . . . Total Robot Build Rating . | . . . . . . . Part Schematics Acquired 1 | . . . 1 . . . Parts Built . | . . . . . . . Authchips . | . . . . . . . Time . | . . . . . . . Total Part Build Rating . | . . . . . . . Parts Repaired 1 | . . 1 . . . . Time 51 | . . 51 . . . . Parts Recycled . | . . . . . . . Recycled Matter . | . . . . . . . Retrieved Matter . | . . . . . . . Retrieved Components 11 | . 9 . 2 . . . Parts Scanalyzed . | . . . . . . . Part Schematics Acquired . | . . . . . . . Parts Damaged . | . . . . . . . Bothacking | -11 -10 -9 -8 -7 -7 -7 ------------ Run | Yrd Mat Mat Mat Fac Gar Sto Used RIF Installer 1 | . . . . . 1 . Robots Hacked . | . . . . . . . Non-combat . | . . . . . . . Combat . | . . . . . . . Robot Hacks Applied . | . . . . . . . Relay Couplers Released 12 | . . . . . 12 . Machine Destruction 12 | . . . . . 12 . Fabnet Peak Effective % . | . . . . . . . Robots Rewired . | . . . . . . . Allies Hacked . | . . . . . . . Hacks Repelled . | . . . . . . . Allies | -11 -10 -9 -8 -7 -7 -7 -------- Run | Yrd Mat Mat Mat Fac Gar Sto Total Allies 2 | . . . . . . 2 Largest Group 2 | . . . . . . 2 Highest-Rated Group 62 | . . . . . . 62 Highest-Rated Ally 31 | . . . . . . 31 Total Orders . | . . . . . . . Ally Attacks 6 | . . . . . . 6 Total Damage 107 | . . . . . . 107 Kills 1 | . . . . . . 1 Allies Corrupted . | . . . . . . . Allies Melted . | . . . . . . . Intel | -11 -10 -9 -8 -7 -7 -7 ------- Run | Yrd Mat Mat Mat Fac Gar Sto Robot Analysis Total . | . . . . . . . Derelict Logs Recovered . | . . . . . . . Drone Launches . | . . . . . . . Drone Recoveries . | . . . . . . . Exploration | -11 -10 -9 -8 -7 -7 -7 ------------- Run | Yrd Mat Mat Mat Fac Gar Sto Turns Passed 7012 | 71 774 1403 1252 292 3002 218 Spaces Moved 3307 | 62 484 781 683 147 1096 54 Core 162 | 58 104 . . . . . Treads 1035 | . . . . . 981 54 Legs . | . . . . . . . Wheels 2110 | 4 380 781 683 147 115 . Hover . | . . . . . . . Flight . | . . . . . . . Fastest Speed 50 | 50 50 110 113 110 115 240 Average Speed 155 | 52 120 114 121 125 226 240 Slowest Speed 560 | 100 140 215 128 140 560 240 Overloaded Moves . | . . . . . . . Propulsion Burnouts . | . . . . . . . Robots Hopped . | . . . . . . . Cave-ins Triggered . | . . . . . . . Exploration Rate (%) 41 | 3 71 67 42 3 92 11 Regions Visited 6 Branch Regions 1 Pre-discovered Areas . | . . . . . . . Known Exits Taken 1 | . . . . 1 . . Unknown Exits Taken 4 | 1 1 1 1 . . . Scrap Searched . | . . . . . . . Spaces Dug . | . . . . . . . Terrain Destroyed 351 | . 52 74 83 . 118 24 Melee . | . . . . . . . Projectile 8 | . . . . . 3 5 AOE 343 | . 52 74 83 . 115 19 Terrain Rammed . | . . . . . . . Walls Destroyed . | . . . . . . . Machines Disabled . | . . . . . . . Actions | -11 -10 -9 -8 -7 -7 -7 --------- Run | Yrd Mat Mat Mat Fac Gar Sto Total 4544 | 83 589 1123 1019 207 1426 97 Wait 384 | . 3 155 201 4 18 3 Move 3300 | 61 483 780 682 146 1094 54 Hop . | . . . . . . . Pick Up 95 | 3 25 26 20 3 18 . Fast Attach 48 | 4 5 12 6 3 17 1 Attach 40 | . 3 10 5 5 10 7 Detach 20 | . 2 4 3 1 10 . Swap 54 | 1 8 10 18 6 9 2 Drop 87 | . 7 27 26 2 25 . Fire 470 | 14 53 99 39 37 202 26 Melee 34 | . . . 19 . 12 3 Ram . | . . . . . . . Kick . | . . . . . . . Crush 1 | . . . . . . 1 Escape Stasis 10 | . . . . . 10 . Rewire 1 | . . . . . 1 . Trap . | . . . . . . . Miscellaneous . | . . . . . . . Route ------- -11/Scrapyard -10/Materials (discovered 3 exits: *Mat x2 / [*Min]) -9/Materials (discovered 3 exits: *Mat x2 / [*Min]) -8/Materials -7/Factory -7/Garrison (discovered 3 exits: *Sto x3) -7/Storage History --------- Turn | Location | Event 10 | -11/Scrapyard | Discovered new exit (range 16) 72 | -11/Scrapyard | Entered Materials 309 | -10/Materials | Build established: Mutant 321 | -10/Materials | Discovered new exit (range 16) 514 | -10/Materials | Discovered new exit (range 11) 773 | -10/Materials | Discovered new exit (range 7) 846 | -10/Materials | Entered another Materials area 846 | -9/Materials | Evolved 2 slots: Propulsion x1, Utility x1 1155 | -9/Materials | Discovered new exit (range 6) 1471 | -9/Materials | Discovered new exit (range 14) 1579 | -9/Materials | Repaired Imp. EM Shotgun 1630 | -9/Materials | Discovered new exit (range 16) 2249 | -9/Materials | Entered another Materials area 2249 | -8/Materials | Evolved 2 slots: Utility x2 2390 | -8/Materials | Central database locked down 2926 | -8/Materials | Destroyed 7 combat bots 2929 | -8/Materials | Lost 3 parts (1n2u) 3188 | -8/Materials | Build established: Scavenger-Mutant 3284 | -8/Materials | Discovered new exit (range 7) 3501 | -8/Materials | Entered Factory 3501 | -7/Factory | Evolved 2 slots: Power x1, Propulsion x1 3700 | -7/Factory | Garrison activated, responded to threat 3776 | -7/Factory | Identified exit to Garrison 3793 | -7/Factory | Entered Garrison 3950 | -7/Garrison | Destroyed 10 combat bots 4005 | -7/Garrison | Lost 7 parts (1p2n1u3w) 4178 | -7/Garrison | Lost 3 parts (1p1n1w) 4293 | -7/Garrison | Discovered new exit (range 9) 4897 | -7/Garrison | Build established: Hauler-Mutant 5039 | -7/Garrison | Triggered checkpoint 5100 | -7/Garrison | Garrison Relay disabled 5267 | -7/Garrison | Discovered new exit (range 10) 5409 | -7/Garrison | Triggered checkpoint 5502 | -7/Garrison | Discovered new exit (range 14) 5592 | -7/Garrison | Phase Generator disabled 5593 | -7/Garrison | Core integrity fell below 50% 5645 | -7/Garrison | Triggered checkpoint 5678 | -7/Garrison | Garrison Relay disabled 6390 | -7/Garrison | Garrison Relay disabled 6588 | -7/Garrison | Installed Relay Interface Framework 6795 | -7/Garrison | Entered Storage 6824 | -7/Storage | Met a pair of Derelict thieves 6930 | -7/Storage | System corruption reached 10% 6997 | -7/Storage | Core integrity fell below 20% 7013 | -7/Storage | Destroyed by B-48 Gladiator with Mace Last Messages --------------- 07001_ KE Penetrator destroyed. 07003_ Katana severed. 07004_ U-05 Engineer lays Concrete. 07004_ U-05 Engineer destroyed. 07005_ Slammed into L-41 Fighter. 07005_ L-41 Fighter destroyed. 07005_ U-05 Engineer builds a Wall. 07006_ U-05 Engineer lays Concrete. 07006_ Acquired Lgt. Fission Core. 07006_ U-05 Engineer lays Concrete. 07009_ Slug penetrates Y-54 Guardian. 07009_ U-05 Engineer destroyed. 07009_ U-05 Engineer lays Concrete. 07010_ The unstable cave ceiling collapses. 07010_ Imp. Deuterium Engine crushed. 07010_ Imp. Light Armor Plating destroyed. 07010_ U-05 Engineer builds a Wall. 07011_ Imp. Heavy Treads destroyed. 07011_ U-05 Engineer builds a Wall. 07013_ System corrupted: Matter fused (-9). Map ----- +----------------------------------------------------+ | ?????????????????????????????????????????????????? | | ?????????????????????????????????????????????????? | | ?????????????????????????????????????????????????? | | ?????????????????????????????????????????????????? | | ?????????????????????????????????????????????????? | | ?????????????????????????????????????????????????? | | ?????????????#???????????????????????????????????? | | ???????????#"""#?????????????????????????????????? | | ???????????#"Y"#?????????????????????????????????? | | ??????????##" "###???????????????????????????????? | | ?????????? "#???????????????????????????????? | | ??????????"" "%+???????????????????????????????? | | ????????#""" "#???????????????????????????????? | | ????????#""" #???????????????????????????????? | | ????????#""" #???????????????????????????????? | | ????????# "" #???????????????????????????????? | | ????????# #???????????????????????????????? | | ????????# #???????????????????????????????? | | ????????# #######?##??????????????????????? | | ???????######+#### ## #??????????????????????? | | ???????# # #???????????????????????? | | ???????# T "#????????????????????????? | | ???????# %=######????????????????????? | | ???????######+####=!/uu# #????????????????????? | | ?????????# ######+## !# ##????????????????????? | | ?????????# T##|%!%! YY@/ # "???????????????? | | ?????????##" "###==%= g/b= #????????????????????? | | ?????????? ?## * g #????????????????????? | | ?????????# ==# #????????????????????? | | ?????????#== = ## ##????????????????????? | | ?????????#= = =## #?????????????????????? | | ?????????######### #?????????????????????? | | ?????????????????###########?????????????????????? | | | | | | | | | | | | | | | | | | | | | | | | | | | | | | | | | | | +----------------------------------------------------+ Best States ------------- Heat Dissipation 62 Coolant Potential 65 Energy Generation 27 Energy Capacity 480 Matter Stores 300 Matter Capacity 300 Sight Range 20 Robot Scan Range 15 Terrain Scan Density 10 ECM Strength 1 Additional Mass Support 12 Base Temperature (-) 100 Armor Coverage 750 Phase Shifting 15 Evasion (%) 55 Targeting Accuracy 5 Recoil Reduction 4 Offensive Hacking 20 Defensive Hacking 10 Authchip Count 1 Item Schematics ----------------- Cargo Storage Unit | -8/Materials | Hacked Robot Schematics ------------------ None Fabricated ------------ Nothing Alien Tech Used ----------------- None Achievements -------------- None Challenges ------------ None Game ------ Seed TechZhirovBotcube Manual? 0 Play Time 01:02:59 Cumulative 209.9 hours Start 2024.09.30 @ 20:01:29 End 2024.10.08 @ 20:35:10 Sessions 7 Manual Loads 0 Difficulty Rogue Special Mode None Game No. 213 Rogue 213 Adventurer 0 Explorer 0 Win Type - Total 0 Types 0/0/0/0/0/0/0/0/0 Lore% 24 Gallery% 59 Achievement% 44 Wizard Run 0 Options --------- Layout 0 ASCII 0 Keyboard 1 Movement Vi Keybinds 0 Fullscreen 1 Font 24/Smallcaps Map View 76x50 Zoom Use 0% Tactical HUD 1 Map Filters NONE Filters NONE Steam 1 RUN: 43ac04ed-f8f3-48bd-a667-fe1fd1bbc3cd